Cogmind - Beta 15 @@@ ROGUE MODE // 2025.05.17 @ 19:15:25 Player: Fleshy Vegetable Bird Result: Self-destructed Performance ------------- Evolutions (2) 1000 Regions Visited (4) 800 Robots Destroyed (54) 270 Value Destroyed (1200) 1200 Prototype IDs (2) 40 Alien Tech Used (0) 0 Bonus (0) 0 TOTAL SCORE: 3310 Bonus ------- None Cogmind --------- Core Integrity 270/550 Matter 116/300 Energy 99/100 System Corruption 0% Temperature Cool (0) Movement Core (50) Location -8/Materials Parts ------- > --- POWER (1) -------- (None) > --- PROPULSION (3) --- (None) > --- UTILITY (4) ------ Visual Processing Unit Terrain Scan Processor > --- WEAPON (3) ------- (None) > --- INVENTORY (5) ---- Huge Storage Unit High-capacity Matter Pod (0) Authchip [R/Combat] Authchip [Armor] Rocket Launcher Peak State ------------ > --- POWER ------------ Light Nuclear Core > --- PROPULSION ------- Wheel Wheel Wheel > --- UTILITY ---------- Large Storage Unit Improved Terrain Scanner Terrain Scan Processor Medium Armor Plating > --- WEAPON ----------- Particle Gun Light Cannon Grenade Launcher > --- INVENTORY -------- Huge Storage Unit High-capacity Battery Transport Network Coupler Particle Charger Hacking Suite Authchip [R/Combat] Authchip [Armor] Rocket Launcher Datajack Plasma Cutter [Rating: 20] Favorites ----------- Power Light Ion Engine Engine Light Ion Engine Power Core Light Nuclear Core Propulsion Wheel Treads Light Treads Leg Aluminum Leg Wheel Wheel Utility Large Storage Unit Device Improved Terrain Scanner Storage Large Storage Unit Processor Terrain Scan Processor Protection Medium Armor Plating Weapon Light Cannon Energy Gun Particle Gun Ballistic Gun Assault Rifle Ballistic Cannon Light Cannon Launcher Grenade Launcher Special Weapon Plasma Cutter Special Melee Weapon Datajack Build | -11 -10 -10 -9 -8 ------- Run | Yrd Mat Min Mat Mat Slots Evolved 4 | . . . 2 2 Power . | . . . . . Propulsion 1 | . . . . 1 Utility 2 | . . . 1 1 Weapon 1 | . . . 1 . Parts Attached 36 | 6 13 4 6 7 Power 4 | 1 1 1 . 1 Engine 3 | 1 1 1 . . Core 1 | . . . . 1 Reactor . | . . . . . Propulsion 12 | 2 5 3 1 1 Treads 1 | . 1 . . . Leg 1 | . . 1 . . Wheel 10 | 2 4 2 1 1 Hover . | . . . . . Flight . | . . . . . Utility 9 | 1 2 . 3 3 Device 3 | . 1 . 1 1 Storage 2 | 1 1 . . . Processor 2 | . . . . 2 Hackware . | . . . . . Protection 2 | . . . 2 . Artifact . | . . . . . Weapon 11 | 2 5 . 2 2 Energy Gun 1 | . . . 1 . Energy Cannon . | . . . . . Ballistic Gun 2 | 2 . . . . Ballistic Cannon 3 | . 3 . . . Launcher 3 | . 2 . 1 . Special Weapon 1 | . . . . 1 Impact Weapon . | . . . . . Slashing Weapon . | . . . . . Piercing Weapon . | . . . . . Special Melee Weapon 1 | . . . . 1 Unidentified Prototypes . | . . . . . Parts Lost 19 | . 2 4 2 11 Power 3 | . 1 1 . 1 Propulsion 6 | . 1 2 . 3 Utility 3 | . . . 1 2 Weapon 7 | . . 1 1 5 Highest Loss Streak 7 | . 2 2 2 7 To Critical Strikes . | . . . . . Average Backups 10 | 3 7 12 13 11 Power . | . . . . . Propulsion . | 1 1 . 1 . Utility 5 | 1 2 5 8 8 Weapon 2 | . 3 4 2 1 Tool/Special . | . . . . . Unused Backups 14 | 1 . 1 1 11 Power 1 | . . . . 1 Propulsion 1 | 1 . . . . Utility 12 | . . 1 1 10 Weapon . | . . . . . Tool/Special . | . . . . . Average Slot Usage (%) 90 | . 93 88 98 68 Engine 10 | . 13 13 11 . Wheel 21 | . 26 13 22 20 Device 7 | . 9 14 1 7 Storage 12 | . 14 14 11 7 Processor 1 | . . . . 9 Protection 7 | . . . 20 4 Energy Gun 3 | . . . 6 4 Ballistic Gun 3 | . 11 . . . Ballistic Cannon 14 | . 12 18 18 3 Launcher 5 | . 3 8 6 3 Peak Build Rating 20 | 6 10 11 15 20 Average Rating 10 | 3 8 10 13 14 On Entrance 7 | . 6 10 10 12 Naked Turns . | . . . . . Heaviest Build 43 | 11 30 30 43 42 Greatest Support 30 | 20 20 20 20 30 Greatest Overweight (x) 9 | . 1 9 2 6 Average Overweight (x) 1 | . . 1 1 . Largest Inventory Capacity 15 | 8 15 15 15 15 Average Capacity 12 | 5 9 15 15 13 Most Carried 15 | 5 10 15 15 14 Average Carried 10 | 3 8 12 13 10 Final Capacity 15 | 8 15 15 15 5 Final Carried 15 | 3 10 14 15 5 Class Distribution -------------------- 34% | Scavenger-Mutant 30% | Mutant 29% | Scavenger-Tank 5% | Scavenger-Skirmisher Dominant Class ---------------- Scavenger-Mutant | -10/Materials Mutant | -10/Mines Scavenger-Tank | -9/Materials Scavenger-Mutant | -8/Materials Resources | -11 -10 -10 -9 -8 ----------- Run | Yrd Mat Min Mat Mat Matter Collected 1405 | 324 393 261 420 7 Remotely . | . . . . . Salvage Created 1199 | 105 513 70 464 47 Parts 79 | 5 33 6 32 3 Haulers Intercepted 4 | . 2 . 2 . Recyclers Shooed 3 | 1 1 . 1 . Parts Field Recycled . | . . . . . Retrieved Matter . | . . . . . Parts Self-Destructed . | . . . . . Prevented . | . . . . . Kills | -11 -10 -10 -9 -8 ------- Run | Yrd Mat Min Mat Mat Combat Hostiles Destroyed 35 | . 11 8 15 1 Guns 9 | . 6 . 3 . Cannons 10 | . 2 1 7 . AOE 16 | . 3 7 5 1 Classes Destroyed 11 | 2 6 1 2 . Worker 7 | . 7 . . . Tunneler 3 | 2 . . 1 . Hauler 4 | . 2 . 2 . Recycler 2 | 1 . . 1 . Operator 2 | . 2 . . . Watcher 3 | . 2 . . 1 Swarmer 11 | . 3 4 4 . Grunt 20 | . 8 2 9 1 Duelist 1 | . . . 1 . Sentry 1 | . . . 1 . Assembled 2 | . . 2 . . Best Kill Streak 10 | 2 10 5 5 2 Combat Bots Only 5 | . 5 5 4 1 Max Kills in Single Turn 2 | 1 2 2 2 2 Gunslinging . | . . . . . Exploded 2 | . 1 2 2 1 Melee . | . . . . . Uniques/NPCs Destroyed . | . . . . . Combat | -11 -10 -10 -9 -8 -------- Run | Yrd Mat Min Mat Mat Hostile Shots Fired 208 | . 43 38 62 65 Missed 60 | . 11 11 16 22 Hits 148 | . 32 27 46 43 Melee 7 | . . 7 . . Projectile 141 | . 32 20 46 43 Critical Strikes 3 | . . . 1 2 Damage Taken 2001 | . 329 456 584 632 Core 549 | . 58 128 83 280 Absorbed by Shields . | . . . . . Core Remaining (%) 68 | 100 . 25 79 . Volleys Fired 136 | 21 50 14 41 10 Largest 3 | 2 2 2 3 2 Hottest 128 | 40 60 60 128 95 Shots Fired 257 | 42 75 25 100 15 Gun 121 | 42 44 . 25 10 Cannon 102 | . 22 15 61 4 Launcher 33 | . 9 10 14 . Special 1 | . . . . 1 Kinetic 188 | 42 66 15 61 4 Thermal 36 | . . . 25 11 Explosive 33 | . 9 10 14 . Electromagnetic . | . . . . . Robot Hit Streak 11 | 5 5 6 5 11 Robot Miss Streak 7 | 3 3 4 7 . Penetration Max . | . . . . . Secondary Targets . | . . . . . Shots Hit Robots 130 | 24 36 12 47 11 Core Hits 86 | 6 36 14 28 2 Critical Kills 2 | 1 1 . . . Critical Parts Destroyed . | . . . . . Critical Strikes 4 | 1 1 . 2 . Destroy 2 | 1 1 . . . Blast 2 | . . . 2 . Melee Attacks . | . . . . . Impact . | . . . . . Slashing . | . . . . . Piercing . | . . . . . Sneak Attacks . | . . . . . Combat Hostiles . | . . . . . Follow-up Attacks . | . . . . . Damage Inflicted 3920 | 263 1228 510 1364 555 Guns 916 | 263 335 . 229 89 Cannons 964 | . 189 121 583 71 Explosions 2028 | . 704 389 552 383 Melee . | . . . . . Ramming . | . . . . . Kinetic 1562 | 263 524 121 583 71 Thermal 713 | . . . 229 484 Explosive 1645 | . 704 389 552 . Electromagnetic . | . . . . . Impact . | . . . . . Slashing . | . . . . . Piercing . | . . . . . Highest Corruption 11 | . 1 11 . . Average Corruption 3 | . 1 7 . . Corruption Purged . | . . . . . Corruption Blocked . | . . . . . Effects 13 | . 4 9 . . Message Errors 2 | . . 2 . . Matter Fused 2 | . 1 1 . . Heat Flow Errors 2 | . . 2 . . Energy Discharges 1 | . . 1 . . Data Loss (minor) 2 | . 2 . . . Data Loss (major) 3 | . . 3 . . Alerts 1 | . 1 . . . Overload Shots . | . . . . . Overflow Damage 256 | . 102 1 9 144 Projectiles 9 | . . . 9 . Explosions 247 | . 102 1 . 144 Melee . | . . . . . Knockbacks 9 | . 2 4 3 . Impact . | . . . . . Kinetic 9 | . 2 4 3 . Secondary . | . . . . . Self-Inflicted Damage 186 | . . 85 22 79 Shots 7 | . . 4 2 1 Rammed . | . . . . . Targets Rammed . | . . . . . Kicked . | . . . . . Crushed . | . . . . . Highest Temperature 429 | . 15 244 429 202 Average Temperature 127 | . 8 56 163 86 Received Heat Transfer 621 | . 114 51 267 189 Effects 10 | . . . 10 . Shutdowns 4 | . . . 4 . Energy Bleed 2 | . . . 2 . Interference 3 | . . . 3 . Matter Decay 1 | . . . 1 . Siege Activations . | . . . . . Martial Activations . | . . . . . Shielding Activations . | . . . . . Robots Disrupted . | . . . . . Combat Hostiles . | . . . . . Robots Corrupted . | . . . . . Combat Hostiles . | . . . . . Parts Fried . | . . . . . Impact Corruptions . | . . . . . Robots Melted . | . . . . . Combat Hostiles . | . . . . . Parts Melted . | . . . . . Heat Transferred 1014 | . . . 555 459 Parts Sabotaged . | . . . . . Parts Stolen . | . . . . . Parts Stripped . | . . . . . Power Chain Reactions . | . . . . . Alert | -11 -10 -10 -9 -8 ------- Run | Yrd Mat Min Mat Mat Maximum Alert Level 1 | . 1 . 1 . Low Security (%) 77 | 100 44 100 84 100 Level 1 22 | . 55 . 15 . Level 2 . | . . . . . Level 3 . | . . . . . Level 4 . | . . . . . Level 5 . | . . . . . High Security . | . . . . . Max Security . | . . . . . Peak Influence 322 | 5 272 118 322 124 Initial 124 | . . 86 27 124 Average 102 | . 161 65 101 67 Influence Increases 1414 | 15 465 207 561 166 Destroy 0b10 Robot/C 660 | . 220 120 300 20 Destroy 0b10 Robot/NC 105 | 15 65 . 20 5 Destroy Leader 154 | . 58 20 74 2 Successful Hack 79 | . 29 . 31 19 Disable Machine 135 | . 30 15 30 60 Destroy Structure 191 | . 48 52 76 15 Partial Spotted 15 | . 15 . . . Lose Combat Pursuer 75 | . . . 30 45 Influence Decreases 1314 | 15 243 356 340 360 Entered New Map 352 | . . 136 46 170 Time Decay 772 | 15 223 180 274 80 Lost Part 190 | . 20 40 20 110 Squads Dispatched 6 | . 1 . 4 1 Investigation 2 | . . . 2 . Extermination . | . . . . . Reinforcement 4 | . 1 . 2 1 Assault . | . . . . . Garrison . | . . . . . Intercept . | . . . . . Searches Triggered . | . . . . . Construction Impeded 1 | . . . 1 . Haulers Reinforced . | . . . . . Active Scanning Responses . | . . . . . Cargo Convoy Interrupts . | . . . . . Stealth | -11 -10 -10 -9 -8 --------- Run | Yrd Mat Min Mat Mat Distress Signals 9 | . 2 3 2 2 Communications Jammed . | . . . . . Distress Signals . | . . . . . Times Spotted 73 | . 19 16 25 13 Peak Tracking Total 8 | . 3 7 5 8 Tactical Retreats 7 | . . 3 2 2 Traps | -11 -10 -10 -9 -8 ------- Run | Yrd Mat Min Mat Mat Traps Triggered 2 | . . . 2 . Indirectly . | . . . . . Trap Hack Attempts . | . . . . . Triggered . | . . . . . Disarmed . | . . . . . Reprogrammed . | . . . . . Reused . | . . . . . Traps Extracted . | . . . . . Installed . | . . . . . Triggered . | . . . . . Objects Rigged 3 | . . . . 3 Exploded 1 | . . . . 1 Machines | -11 -10 -10 -9 -8 ---------- Run | Yrd Mat Min Mat Mat Machines Disabled 9 | . 2 1 2 4 Max in Single Turn 4 | . 1 1 1 4 Machines Repaired . | . . . . . Machines Dismantled . | . . . . . Machines Sabotaged . | . . . . . Overloaded Fab Kills . | . . . . . Hacking | -11 -10 -10 -9 -8 --------- Run | Yrd Mat Min Mat Mat Machines Accessed 15 | . 6 . 6 3 Terminals 15 | . 6 . 6 3 Fabricators . | . . . . . Repair Stations . | . . . . . Recycling Units . | . . . . . Scanalyzers . | . . . . . Garrison Access . | . . . . . Total Hacks 43 | . 19 . 14 10 Successful 23 | . 10 . 8 5 Failed 20 | . 9 . 6 5 Catastrophic 5 | . 2 . 2 1 Database Lockouts . | . . . . . Manual 39 | . 15 . 14 10 Terminals 43 | . 19 . 14 10 Fabricators . | . . . . . Repair Stations . | . . . . . Recycling Units . | . . . . . Scanalyzers . | . . . . . Garrison Access . | . . . . . Terminal Hacks 8 | . 5 . 2 1 Part Schematic 2 | . 1 . 1 . Robot Analysis 1 | . 1 . . . Prototype ID Bank 1 | . 1 . . . Terminal Index 3 | . 1 . 1 1 Scanalyzer Index 1 | . 1 . . . Fabricator Hacks . | . . . . . Repair Station Hacks . | . . . . . Recycling Unit Hacks . | . . . . . Scanalyzer . | . . . . . Garrison Access Hacks . | . . . . . Unauthorized Hacks 15 | . 5 . 6 4 Terminals 15 | . 5 . 6 4 Track 1 | . . . 1 . Botnet 12 | . 5 . 5 2 Detonate 1 | . . . . 1 Disrupt 1 | . . . . 1 Fabricators . | . . . . . Repair Stations . | . . . . . Recycling Units . | . . . . . Scanalyzers . | . . . . . Garrison Access . | . . . . . Data Cores Recovered 1 | . 1 . . . Used 1 | . 1 . . . Hacking Detections 15 | . 6 . 6 3 Full Trace Events 1 | . 1 . . . Feedback Events 1 | . 1 . . . Corruption 1 | . 1 . . . Feedback Blocked . | . . . . . Robot Schematics Acquired . | . . . . . Robots Built . | . . . . . Authchips . | . . . . . Time . | . . . . . Total Robot Build Rating . | . . . . . Part Schematics Acquired 2 | . 1 . 1 . Parts Built . | . . . . . Authchips . | . . . . . Time . | . . . . . Total Part Build Rating . | . . . . . Parts Repaired . | . . . . . Time . | . . . . . Parts Recycled . | . . . . . Recycled Matter . | . . . . . Retrieved Matter . | . . . . . Retrieved Components . | . . . . . Parts Scanalyzed . | . . . . . Part Schematics Acquired . | . . . . . Parts Damaged . | . . . . . Bothacking | -11 -10 -10 -9 -8 ------------ Run | Yrd Mat Min Mat Mat Used RIF Installer . | . . . . . Robots Hacked . | . . . . . Non-combat . | . . . . . Combat . | . . . . . Robot Hacks Applied . | . . . . . Relay Couplers Released . | . . . . . Fabnet Peak Effective % . | . . . . . Robots Rewired . | . . . . . Allies Hacked . | . . . . . Hacks Repelled . | . . . . . Allies | -11 -10 -10 -9 -8 -------- Run | Yrd Mat Min Mat Mat Total Allies . | . . . . . Largest Group . | . . . . . Highest-Rated Group . | . . . . . Highest-Rated Ally . | . . . . . Total Orders . | . . . . . Ally Attacks . | . . . . . Total Damage . | . . . . . Kills . | . . . . . Allies Corrupted . | . . . . . Allies Melted . | . . . . . Intel | -11 -10 -10 -9 -8 ------- Run | Yrd Mat Min Mat Mat Active Infowar (turns) 1038 | . 403 362 42 231 Optics 32 | . . . . 32 Terrain 1006 | . 403 362 42 199 Robot Analysis Total 1 | . 1 . . . Derelict Logs Recovered 1 | . . 1 . . Drone Launches . | . . . . . Drone Recoveries . | . . . . . Exploration | -11 -10 -10 -9 -8 ------------- Run | Yrd Mat Min Mat Mat Turns Passed 1938 | 125 600 362 614 237 Spaces Moved 1236 | 68 413 199 347 209 Core 81 | 16 . 7 . 58 Treads . | . . . . . Legs 44 | . . 44 . . Wheels 1111 | 52 413 148 347 151 Hover . | . . . . . Flight . | . . . . . Fastest Speed 50 | 50 80 95 95 50 Average Speed 100 | 72 84 145 109 83 Slowest Speed 500 | 80 95 500 110 350 Overloaded Moves . | . . . . . Propulsion Burnouts . | . . . . . Robots Hopped . | . . . . . Potential Cave-ins . | . . . . . Cave-ins Triggered . | . . . . . Exploration Rate (%) 37 | 4 78 38 43 26 Regions Visited 4 Branch Regions 1 Pre-discovered Areas . | . . . . . Known Exits Taken . | . . . . . Unknown Exits Taken 4 | 1 1 1 1 . Scrap Searched 1 | . . 1 . . Spaces Dug 15 | . . . 15 . Terrain Destroyed 266 | . 51 94 106 15 Melee . | . . . . . Projectile . | . . . . . AOE 266 | . 51 94 106 15 Terrain Rammed . | . . . . . Walls Destroyed . | . . . . . Machines Disabled . | . . . . . Actions | -11 -10 -10 -9 -8 --------- Run | Yrd Mat Min Mat Mat Total 1689 | 105 589 246 497 252 Wait 195 | . 85 18 81 11 Move 1232 | 67 412 198 346 209 Hop . | . . . . . Pick Up 56 | 10 19 9 10 8 Fast Attach . | . . . . . Attach 26 | 6 3 4 6 7 Detach . | . . . . . Swap 22 | . 11 1 9 1 Drop 20 | 1 9 2 4 4 Fire 136 | 21 50 14 41 10 Melee . | . . . . . Ram . | . . . . . Kick . | . . . . . Crush . | . . . . . Escape Stasis . | . . . . . Rewire . | . . . . . Trap . | . . . . . Miscellaneous 2 | . . . . 2 Route ------- -11/Scrapyard -10/Materials (discovered 4 exits: *Mat x3 / [*Min]) -10/Mines -9/Materials -8/Materials (discovered 1 exit: [*Fac]) History --------- Turn | Location | Event 6 | -11/Scrapyard | Discovered new exit (range 15) 126 | -11/Scrapyard | Entered Materials 182 | -10/Materials | Discovered new exit (range 8) 314 | -10/Materials | Build established: Mutant 345 | -10/Materials | Discovered new exit (range 9) 441 | -10/Materials | Discovered new exit (range 13) 643 | -10/Materials | Discovered new exit (range 6) 705 | -10/Materials | Build established: Scavenger-Mutant 726 | -10/Materials | Entered Mines 733 | -10/Mines | Received a Rocket Launcher from a helpful Derelict 753 | -10/Mines | Assembled infested the area 758 | -10/Mines | Assisted by a Guerilla fighting off Assembled 854 | -10/Mines | System corruption reached 10% 855 | -10/Mines | Core integrity fell below 50% 1059 | -10/Mines | Discovered new exit (range 15) 1088 | -10/Mines | Entered Materials 1088 | -9/Materials | Evolved 2 slots: Utility x1, Weapon x1 1404 | -9/Materials | Build established: Scavenger-Tank 1659 | -9/Materials | Discovered new exit (range 16) 1702 | -9/Materials | Entered another Materials area 1702 | -8/Materials | Evolved 2 slots: Propulsion x1, Utility x1 1871 | -8/Materials | Lost 7 parts (1p1n1u4w) 1925 | -8/Materials | Discovered new exit (range 18) 1930 | -8/Materials | Core integrity fell below 50% 1939 | -8/Materials | Self-destructed Last Messages --------------- 01907_ U-05 Engineer lays Concrete. 01907_ Dropped Hcp. Battery. 01907_ Penetrated by Slug. 01907_ Imp. Terrain Scanner destroyed. 01908_ U-05 Engineer lays Concrete. 01908_ Acquired Authchip [Armor]. 01909_ U-05 Engineer lays Concrete. 01909_ R-06 Scavenger collects Imp. Heat Sink. 01910_ U-05 Engineer lays Concrete. 01910_ K-01 Serf collects debris. 01910_ U-05 Engineer lays Concrete. 01910_ Penetrated by Slug. 01911_ U-05 Engineer lays Concrete. 01911_ Acquired Authchip [R/Combat]. 01912_ U-05 Engineer lays Concrete. 01913_ Extracted 23 energy. 01913_ U-05 Engineer lays Concrete. 01915_ Datajack destroyed. 01915_ U-05 Engineer lays Concrete. 01925_ EXIT=FOUND Map ----- +----------------------------------------------------+ | ?# #?????# " | | ?# #???T #! | | ??? ???????# * | | ????? [?????????#!!! | | ?????##+############!! " | | ?????# !! " | | ?????# # | | ?????# # | | ?????# h############+#"""" # | | ?????# #????????? ? # # | | ?????# #??#??????? ! # # | | ?????# k#?######???? # # | | ?????# #? #????" #? # | | ?????# # #????"" #?? # | | ?????# k# #?"??"" /#???# | | ?????# + #??"?"" # ??? | | ?????# # #?????? #???? | | ?????# # #?????? #???? | | ?????# #?######???????###???? | | ?????# #????????????????????? | | ?????# #????????????????????? | | ?????# #????????????????????? | | ?????#ggs#????????????????????? | | ?????# #????????????????????? | | ?##### #????????????????????? | | ?#== @ ########?????????????? | | ?#== #! #?????????????? | | ?#** # """ #?????????????? | | ?#** # """ #?????????????? | | ?#!! + """ #?????????????? | | ?#!! # #?????????????? | | ?##### < # / #?????????????? | | ?????# ########?????????????? | | ?????#####????????????????????? | | ??????????????????????????????? | | ??????????????????????????????? | | ??????????????????????????????? | | ??????????????????????????????? | | ??????????????????????????????? | | ??????????????????????????????? | | ??????????????????????????????? | | ??????????????????????????????? | | ??????????????????????????????? | | ??????????????????????????????? | | ??????????????????????????????? | | ??????????????????????????????? | | ??????????????????????????????? | | ??????????????????????????????? | | | | | +----------------------------------------------------+ Best States ------------- Heat Dissipation 31 Energy Generation 14 Energy Capacity 160 Matter Stores 300 Matter Capacity 300 Sight Range 18 Terrain Scan Range 16 Terrain Scan Density 85 Armor Coverage 375 Evasion (%) 50 Recoil Reduction 1 Authchip Count 2 Item Schematics ----------------- Huge Storage Unit | -10/Materials | Hacked Arm. Wheel | -9/Materials | Hacked Robot Schematics ------------------ None Fabricated ------------ Nothing Repaired ---------- Nothing Alien Tech Used ----------------- None Achievements -------------- None Challenges ------------ None Game ------ Seed MetafiberChainLegs Manual? 0 Play Time 00:25:28 Cumulative 337.8 hours Start 2025.05.17 @ 18:50:44 End 2025.05.17 @ 19:15:25 Sessions 1 Manual Loads 0 Difficulty Rogue Special Mode None Game No. 388 Rogue 388 Adventurer 0 Explorer 0 Win Type - Total 6 Types 3/1/1/1/0/0/0/0/0/0 Lore% 46 Gallery% 66 Achievement% 68 Wizard Run 0 Options --------- Layout 1 ASCII 0 Keyboard 0 Movement Numpad Keybinds 0 Fullscreen 1 Font 32/SmallcapsGlow Map View 50x35 Zoom Use 0% Tactical HUD 1 Map Filters NONE Filters NONE Steam 1 RUN: 0a92a80c-96d7-41f9-b4b0-c3433434ed09